[Event "Polugaevsky Memorial 2019"]
[Site "Samara"]
[Date "2019.07.10"]
[Round "1.1"]
[White "Morgachev, Sergey"]
[Black "Shaposhnikov, Evgeny"]
[Result "1-0"]
[ECO "A40"]
[WhiteElo "1965"]
[BlackElo "2575"]
[Annotator "ChessBase"]
[PlyCount "75"]
[EventDate "2019.07.10"]
[EventType "swiss"]
[EventCountry "RUS"]
[SourceTitle "playchess.com"]
[Source "ChessBase"]
[SourceQuality "1"]
[TimeControl "5400+30"]

1. d4 {[%emt 0:00:00]} Nf6 {[%emt 0:00:00]} 2. c4 {[%emt 0:00:00]} e6 {[%emt 0:00:00]} 3. g3 {[%emt 0:00:00]} Bb4+ {[%emt 0:00:00]} 4. Bd2 {[%emt 0:00:06]} Be7 {[%emt 0:00:00]} 5. Bg2 {[%emt 0:00:15]} d5 {[%emt 0:03:53]} 6. Nf3 {[%emt 0:00:11]} O-O {[%emt 0:00:17]} 7. O-O {[%emt 0:00:17]} c6 {[%emt 0:00:19]} 8. Bf4 {[%emt 0:01:05]} b6 {[%emt 0:00:04]} 9. Nc3 {[%emt 0:01:07]} Nbd7 {[%emt 0:01:11]} 10. Rc1 {[%emt 0:03:18]} Bb7 {[%emt 0:09:05]} 11. cxd5 {[%emt 0:01:48]} exd5 {[%emt 0:00:09]} 12. Ne5 {[%emt 0:11:01]} Nxe5 {[%emt 0:00:36]} 13. Bxe5 {[%emt 0:02:34]} Ng4 {[%emt 0:01:05]} 14. Bf4 {[%emt 0:04:04]} f5 {[%emt 0:00:12]} 15. e4 {[%emt 0:23:15]} dxe4 {[%emt 0:00:38]} 16. Nxe4 {[%emt 0:01:21]} Nxh2 {[%emt 0:22:28]} 17. Kxh2 {[%emt 0:00:42]} fxe4 {[%emt 0:00:01]} 18. Bxe4 {[%emt 0:01:56]} Rxf4 {[%emt 0:08:32]} 19. gxf4 {[%emt 0:00:51]} Qd6 {[%emt 0:02:12]} 20. Kg2 {[%emt 0:09:04]} Rf8 {[%emt 0:04:34]} 21. Qb3+ {[%emt 0:11:54]} Kh8 {[%emt 0:01:15]} 22. Rh1 {[%emt 0:01:59]} h6 {[%emt 0:02:11]} 23. Qg3 {[%emt 0:01:35]} Rxf4 {[%emt 0:00:42]} 24. f3 {[%emt 0:01:11]} g5 {[%emt 0:05:49]} 25. Qh3 {[%emt 0:09:00]} Kg7 {[%emt 0:03:00]} 26. Qh5 {[%emt 0:01:16]} Rf6 {[%emt 0:01:10]} 27. Rhd1 {[%emt 0:05:49]} Rf4 {[%emt 0:01:41]} 28. Re1 {[%emt 0:02:21]} Bf8 {[%emt 0:06:40]} 29. Qe8 {[%emt 0:01:57]} Rf6 {[%emt 0:02:06]} 30. Qh5 {[%emt 0:04:25]} Kh8 {[%emt 0:04:14]} 31. Red1 {[%emt 0:00:34]} Kg7 {[%emt 0:03:11]} 32. Re1 {[%emt 0:00:07]} Qd8 {[%emt 0:03:16]} 33. Rc2 {[%emt 0:00:53]} Qxd4 {[%emt 0:01:04]} 34. Ree2 {[%emt 0:00:28]} Bc5 {[%emt 0:00:20]} 35. Qh2 {[%emt 0:00:33]} g4 {[%emt 0:03:05]} 36. fxg4 {[%emt 0:00:32]} Rf2+ {[%emt 0:00:14]} 37. Rxf2 {[%emt 0:00:21]} Qxf2+ {[%emt 0:00:02]} 38. Rxf2 {[%emt 0:00:09]} 1-0

[Event "Polugaevsky Memorial 2019"]
[Site "Samara"]
[Date "2019.07.10"]
[Round "1.2"]
[White "Goganov, Aleksey"]
[Black "Boyko, Igor K."]
[Result "1-0"]
[ECO "E16"]
[WhiteElo "2561"]
[BlackElo "1959"]
[Annotator "ChessBase"]
[PlyCount "81"]
[EventDate "2019.07.10"]
[EventType "swiss"]
[EventCountry "RUS"]
[SourceTitle "playchess.com"]
[Source "ChessBase"]
[SourceQuality "1"]
[TimeControl "5400+30"]

1. d4 {[%emt 0:00:00]} Nf6 {[%emt 0:06:52]} 2. c4 {[%emt 0:00:00]} e6 {[%emt 0:00:13]} 3. Nf3 {[%emt 0:00:00]} Bb4+ {[%emt 0:00:10]} 4. Bd2 {[%emt 0:00:01]} Qe7 {[%emt 0:00:06]} 5. g3 {[%emt 0:00:09]} Nc6 {[%emt 0:00:06]} 6. Nc3 {[%emt 0:00:48]} Bxc3 {[%emt 0:03:33]} 7. Bxc3 {[%emt 0:00:06]} Ne4 {[%emt 0:00:04]} 8. Rc1 {[%emt 0:01:03]} O-O {[%emt 0:01:03]} 9. Bg2 {[%emt 0:00:05]} d6 {[%emt 0:01:15]} 10. d5 {[%emt 0:00:17]} Nd8 {[%emt 0:01:25]} 11. Bb4 {[%emt 0:01:17]} a5 {[%emt 0:03:12]} 12. Ba3 {[%emt 0:00:32]} e5 {[%emt 0:04:51]} 13. Nd2 {[%emt 0:02:07]} Nxd2 {[%emt 0:07:03]} 14. Qxd2 {[%emt 0:00:17]} f5 {[%emt 0:04:54]} 15. c5 {[%emt 0:00:54]} Nf7 {[%emt 0:01:30]} 16. O-O {[%emt 0:01:37]} Bd7 {[%emt 0:10:27]} 17. Qe3 {[%emt 0:05:39]} Bb5 {[%emt 0:10:23]} 18. Rc2 {[%emt 0:00:30]} e4 {[%emt 0:08:39]} 19. cxd6 {[%emt 0:01:34]} cxd6 {[%emt 0:00:04]} 20. Rfc1 {[%emt 0:00:15]} Qe5 {[%emt 0:01:36]} 21. Qd2 {[%emt 0:04:00]} Nh6 {[%emt 0:04:25]} 22. b3 {[%emt 0:05:09]} f4 {[%emt 0:04:56]} 23. gxf4 {[%emt 0:00:33]} Rxf4 {[%emt 0:12:32]} 24. Rc8+ {[%emt 0:17:55]} Rxc8 {[%emt 0:01:54]} 25. Rxc8+ {[%emt 0:00:10]} Rf8 {[%emt 0:00:04]} 26. Rxf8+ {[%emt 0:01:08]} Kxf8 {[%emt 0:00:04]} 27. Bb2 {[%emt 0:02:30]} e3 {[%emt 0:04:59]} 28. fxe3 {[%emt 0:00:07]} Qg5 {[%emt 0:00:52]} 29. Bc1 {[%emt 0:02:23]} b6 {[%emt 0:06:12]} 30. Qd4 {[%emt 0:05:58]} Nf5 {[%emt 0:00:38]} 31. Qxb6 {[%emt 0:00:27]} Bxe2 {[%emt 0:00:40]} 32. Qb8+ {[%emt 0:00:21]} Kf7 {[%emt 0:00:22]} 33. Qc7+ {[%emt 0:00:04]} Kg6 {[%emt 0:00:21]} 34. e4 {[%emt 0:01:55]} Ne3 {[%emt 0:00:31]} 35. Qxd6+ {[%emt 0:00:06]} Kh5 {[%emt 0:00:38]} 36. Qg3 {[%emt 0:00:10]} Qxg3 {[%emt 0:00:41]} 37. hxg3 {[%emt 0:00:06]} Nxg2 {[%emt 0:00:36]} 38. Kxg2 {[%emt 0:00:06]} Kg4 {[%emt 0:00:24]} 39. Kf2 {[%emt 0:00:32]} Bb5 {[%emt 0:00:23]} 40. a4 {[%emt 0:00:00]} Be8 {[%emt 0:00:00]} 41. Bd2 {[%emt 0:00:00]} 1-0

[Event "Polugaevsky Memorial 2019"]
[Site "Samara"]
[Date "2019.07.10"]
[Round "1.3"]
[White "Ulyankin, Igor"]
[Black "Zhigalko, Andrey"]
[Result "0-1"]
[ECO "A04"]
[WhiteElo "1957"]
[BlackElo "2549"]
[Annotator "ChessBase"]
[PlyCount "78"]
[EventDate "2019.07.10"]
[EventType "swiss"]
[EventCountry "RUS"]
[SourceTitle "playchess.com"]
[Source "ChessBase"]
[SourceQuality "1"]
[TimeControl "5400+30"]

1. Nf3 {[%emt 0:00:00]} c5 {[%emt 0:00:00]} 2. g3 {[%emt 0:00:00]} g6 {[%emt 0:00:01]} 3. Bg2 {[%emt 0:00:13]} Bg7 {[%emt 0:00:11]} 4. c4 {[%emt 0:00:34]} Nc6 {[%emt 0:00:31]} 5. O-O {[%emt 0:00:39]} d6 {[%emt 0:05:14]} 6. Nc3 {[%emt 0:02:46]} e6 {[%emt 0:01:29]} 7. d3 {[%emt 0:00:49]} Nge7 {[%emt 0:00:52]} 8. Bd2 {[%emt 0:00:45]} a6 {[%emt 0:03:04]} 9. Rb1 {[%emt 0:04:48]} Rb8 {[%emt 0:06:08]} 10. a3 {[%emt 0:06:09]} b5 {[%emt 0:00:48]} 11. cxb5 {[%emt 0:00:23]} axb5 {[%emt 0:00:05]} 12. b4 {[%emt 0:00:42]} cxb4 {[%emt 0:01:55]} 13. axb4 {[%emt 0:00:05]} h6 {[%emt 0:04:48]} 14. Qc2 {[%emt 0:05:05]} O-O {[%emt 0:11:42]} 15. Rfc1 {[%emt 0:05:56]} Kh7 {[%emt 0:07:27]} 16. e3 {[%emt 0:03:02]} Bd7 {[%emt 0:13:13]} 17. Qb3 {[%emt 0:08:29]} d5 {[%emt 0:08:56]} 18. Ne1 {[%emt 0:04:15]} Nf5 {[%emt 0:04:31]} 19. Ne2 {[%emt 0:06:23]} Qb6 {[%emt 0:04:28]} 20. e4 {[%emt 0:11:16]} Nfd4 {[%emt 0:01:54]} 21. Qd1 {[%emt 0:02:22]} dxe4 {[%emt 0:05:19]} 22. dxe4 {[%emt 0:00:59]} Rfd8 {[%emt 0:01:17]} 23. Nd3 {[%emt 0:04:39]} Ne5 {[%emt 0:06:59]} 24. Nxe5 {[%emt 0:02:18]} Bxe5 {[%emt 0:00:01]} 25. Be3 {[%emt 0:00:59]} Be8 {[%emt 0:00:18]} 26. Nxd4 {[%emt 0:05:26]} Bxd4 {[%emt 0:00:04]} 27. Bxd4 {[%emt 0:00:04]} Rxd4 {[%emt 0:00:12]} 28. Qf3 {[%emt 0:01:10]} e5 {[%emt 0:01:58]} 29. Qc3 {[%emt 0:01:24]} Rbd8 {[%emt 0:02:01]} 30. h4 {[%emt 0:06:58]} Rd2 {[%emt 0:02:59]} 31. Qc5 {[%emt 0:00:54]} Qf6 {[%emt 0:00:15]} 32. Rf1 {[%emt 0:02:34]} R8d4 {[%emt 0:02:37]} 33. Rb3 {[%emt 0:04:01]} Kg7 {[%emt 0:01:41]} 34. Rc3 {[%emt 0:01:34]} Bd7 {[%emt 0:01:01]} 35. f4 {[%emt 0:02:08]} Bg4 {[%emt 0:02:12]} 36. Qc7 {[%emt 0:05:18]} Rb2 {[%emt 0:00:52]} 37. fxe5 {[%emt 0:01:21]} Rxg2+ {[%emt 0:00:32]} 38. Kxg2 {[%emt 0:00:37]} Bh3+ {[%emt 0:00:05]} 39. Kxh3 {[%emt 0:01:05]} Qxf1+ {[%emt 0:00:04]} 0-1

[Event "Polugaevsky Memorial 2019"]
[Site "Samara"]
[Date "2019.07.10"]
[Round "1.4"]
[White "Ovetchkin, Roman"]
[Black "Salomatin, Anton"]
[Result "1-0"]
[ECO "A58"]
[WhiteElo "2538"]
[BlackElo "1951"]
[Annotator "ChessBase"]
[PlyCount "102"]
[EventDate "2019.07.10"]
[EventType "swiss"]
[EventCountry "RUS"]
[SourceTitle "playchess.com"]
[Source "ChessBase"]
[SourceQuality "1"]
[TimeControl "5400+30"]

1. d4 {[%emt 0:01:17]} Nf6 {[%emt 0:00:04]} 2. c4 {[%emt 0:00:09]} c5 {[%emt 0:00:22]} 3. d5 {[%emt 0:00:08]} b5 {[%emt 0:01:02]} 4. cxb5 {[%emt 0:00:07]} a6 {[%emt 0:00:30]} 5. bxa6 {[%emt 0:00:07]} Bxa6 {[%emt 0:01:20]} 6. Nc3 {[%emt 0:00:12]} g6 {[%emt 0:00:52]} 7. e4 {[%emt 0:05:00]} Bxf1 {[%emt 0:01:18]} 8. Kxf1 {[%emt 0:00:05]} d6 {[%emt 0:00:24]} 9. Nf3 {[%emt 0:00:10]} Nbd7 {[%emt 0:00:48]} 10. g3 {[%emt 0:00:10]} Bg7 {[%emt 0:01:04]} 11. Kg2 {[%emt 0:00:09]} O-O {[%emt 0:00:51]} 12. a4 {[%emt 0:00:04]} Qa5 {[%emt 0:04:23]} 13. Qc2 {[%emt 0:12:35]} Rfb8 {[%emt 0:04:33]} 14. Ra3 {[%emt 0:07:30]} Qb6 {[%emt 0:11:54]} 15. Nb5 {[%emt 0:07:41]} Qb7 {[%emt 0:11:52]} 16. Re1 {[%emt 0:10:50]} Ne8 {[%emt 0:06:04]} 17. Bd2 {[%emt 0:06:30]} Nb6 {[%emt 0:02:17]} 18. b3 {[%emt 0:07:19]} Nd7 {[%emt 0:04:17]} 19. Ra2 {[%emt 0:16:41]} Ndf6 {[%emt 0:10:20]} 20. Qc4 {[%emt 0:04:38]} Nd7 {[%emt 0:06:06]} 21. h4 {[%emt 0:05:43]} Qa6 {[%emt 0:03:12]} 22. Rc2 {[%emt 0:00:31]} Nb6 {[%emt 0:01:58]} 23. Qe2 {[%emt 0:01:31]} Nxa4 {[%emt 0:04:13]} 24. Nxd6 {[%emt 0:04:03]} exd6 {[%emt 0:07:27]} 25. Qxa6 {[%emt 0:01:14]} Rxa6 {[%emt 0:00:03]} 26. bxa4 {[%emt 0:00:05]} Rxa4 {[%emt 0:00:26]} 27. e5 {[%emt 0:01:24]} Rd8 {[%emt 0:05:56]} 28. exd6 {[%emt 0:00:47]} Nxd6 {[%emt 0:00:26]} 29. Bg5 {[%emt 0:03:23]} Rc8 {[%emt 0:00:58]} 30. Bf4 {[%emt 0:00:36]} Nf5 {[%emt 0:01:34]} 31. d6 {[%emt 0:00:53]} Rd8 {[%emt 0:03:39]} 32. d7 {[%emt 0:02:02]} Rxd7 {[%emt 0:02:21]} 33. Re8+ {[%emt 0:00:14]} Bf8 {[%emt 0:00:50]} 34. Rxc5 {[%emt 0:00:27]} Rxf4 {[%emt 0:00:49]} 35. gxf4 {[%emt 0:00:12]} Kg7 {[%emt 0:00:08]} 36. Rcc8 {[%emt 0:02:03]} Be7 {[%emt 0:00:59]} 37. h5 {[%emt 0:01:13]} h6 {[%emt 0:01:40]} 38. Rg8+ {[%emt 0:00:10]} Kf6 {[%emt 0:01:07]} 39. hxg6 {[%emt 0:00:25]} Bd6 {[%emt 0:00:50]} 40. gxf7 {[%emt 0:00:00]} Rxf7 {[%emt 0:00:00]} 41. Rc6 {[%emt 0:00:00]} Ke7 {[%emt 0:00:00]} 42. Ne5 {[%emt 0:00:00]} Rg7+ {[%emt 0:00:00]} 43. Rxg7+ {[%emt 0:00:00]} Nxg7 {[%emt 0:00:00]} 44. Kf3 {[%emt 0:00:00]} Ne6 {[%emt 0:00:00]} 45. Ke4 {[%emt 0:00:00]} h5 {[%emt 0:00:00]} 46. f5 {[%emt 0:00:00]} Nc5+ {[%emt 0:00:00]} 47. Kd5 {[%emt 0:00:00]} Bxe5 {[%emt 0:00:00]} 48. Kxc5 {[%emt 0:00:00]} Bf4 {[%emt 0:00:00]} 49. Kd5 {[%emt 0:00:00]} h4 {[%emt 0:00:00]} 50. f6+ {[%emt 0:00:00]} Kf7 {[%emt 0:00:00]} 51. Ke4 {[%emt 0:00:00]} Bd2 {[%emt 0:00:00]} 1-0

[Event "Polugaevsky Memorial 2019"]
[Site "Samara"]
[Date "2019.07.10"]
[Round "1.5"]
[White "Salakhova, Adelya"]
[Black "Utegaliyev, Azamat"]
[Result "0-1"]
[ECO "E62"]
[WhiteElo "1933"]
[BlackElo "2510"]
[Annotator "ChessBase"]
[PlyCount "64"]
[EventDate "2019.07.10"]
[EventType "swiss"]
[EventCountry "RUS"]
[SourceTitle "playchess.com"]
[Source "ChessBase"]
[SourceQuality "1"]
[TimeControl "5400+30"]

1. d4 {[%emt 0:00:00]} Nf6 {[%emt 0:12:08]} 2. Nf3 {[%emt 0:00:00]} g6 {[%emt 0:00:22]} 3. c4 {[%emt 0:00:17]} Bg7 {[%emt 0:00:14]} 4. g3 {[%emt 0:00:07]} O-O {[%emt 0:00:07]} 5. Bg2 {[%emt 0:00:05]} d6 {[%emt 0:00:03]} 6. O-O {[%emt 0:00:32]} c6 {[%emt 0:00:39]} 7. Nc3 {[%emt 0:02:00]} Bf5 {[%emt 0:00:09]} 8. Re1 {[%emt 0:07:05]} Ne4 {[%emt 0:00:23]} 9. Nd2 {[%emt 0:05:49]} Nxc3 {[%emt 0:02:14]} 10. bxc3 {[%emt 0:00:06]} Na6 {[%emt 0:00:33]} 11. e4 {[%emt 0:02:50]} Be6 {[%emt 0:00:13]} 12. Rb1 {[%emt 0:04:03]} Qc8 {[%emt 0:01:02]} 13. Qe2 {[%emt 0:06:46]} Nc7 {[%emt 0:04:25]} 14. Ba3 {[%emt 0:08:16]} Rd8 {[%emt 0:04:59]} 15. Nf1 {[%emt 0:11:12]} b6 {[%emt 0:00:50]} 16. Ne3 {[%emt 0:02:36]} Qa6 {[%emt 0:00:12]} 17. Bb2 {[%emt 0:02:38]} b5 {[%emt 0:06:43]} 18. cxb5 {[%emt 0:10:01]} cxb5 {[%emt 0:00:07]} 19. a3 {[%emt 0:07:14]} Rac8 {[%emt 0:01:34]} 20. Nc2 {[%emt 0:13:35]} Qb6 {[%emt 0:05:22]} 21. d5 {[%emt 0:03:56]} Bd7 {[%emt 0:01:00]} 22. Nd4 {[%emt 0:01:18]} a6 {[%emt 0:01:42]} 23. Ba1 {[%emt 0:01:46]} Qc5 {[%emt 0:00:20]} 24. Qb2 {[%emt 0:01:41]} Na8 {[%emt 0:00:32]} 25. Qb4 {[%emt 0:02:16]} Nb6 {[%emt 0:00:23]} 26. Qxc5 {[%emt 0:01:34]} Rxc5 {[%emt 0:00:23]} 27. Rb3 {[%emt 0:02:29]} Rdc8 {[%emt 0:00:25]} 28. Ne2 {[%emt 0:01:51]} Na4 {[%emt 0:03:15]} 29. Rc1 {[%emt 0:00:20]} R5c7 {[%emt 0:00:52]} 30. h3 {[%emt 0:01:00]} e6 {[%emt 0:00:24]} 31. f4 {[%emt 0:00:26]} exd5 {[%emt 0:00:06]} 32. exd5 {[%emt 0:00:05]} Nc5 {[%emt 0:00:17]} 0-1

[Event "Polugaevsky Memorial 2019"]
[Site "Samara"]
[Date "2019.07.10"]
[Round "1.6"]
[White "Yeletsky, Ivan"]
[Black "Ekimov, Vyacheslav"]
[Result "1/2-1/2"]
[ECO "B12"]
[WhiteElo "2464"]
[BlackElo "1900"]
[Annotator "ChessBase"]
[PlyCount "154"]
[EventDate "2019.07.10"]
[EventType "swiss"]
[EventCountry "RUS"]
[SourceTitle "playchess.com"]
[Source "ChessBase"]
[SourceQuality "1"]
[TimeControl "5400+30"]

1. e4 {[%emt 0:00:00]} c6 {[%emt 0:00:00]} 2. d4 {[%emt 0:00:24]} d5 {[%emt 0:00:00]} 3. e5 {[%emt 0:00:28]} Bf5 {[%emt 0:00:00]} 4. Nf3 {[%emt 0:00:11]} e6 {[%emt 0:00:13]} 5. Be2 {[%emt 0:00:08]} Nd7 {[%emt 0:00:07]} 6. O-O {[%emt 0:00:21]} h6 {[%emt 0:00:08]} 7. Nbd2 {[%emt 0:00:31]} Ne7 {[%emt 0:00:08]} 8. Re1 {[%emt 0:01:16]} Qc7 {[%emt 0:16:22]} 9. c3 {[%emt 0:03:37]} g5 {[%emt 0:11:36]} 10. Nf1 {[%emt 0:00:41]} Bg6 {[%emt 0:08:23]} 11. Ng3 {[%emt 0:06:24]} Bg7 {[%emt 0:14:50]} 12. Bd3 {[%emt 0:06:04]} O-O {[%emt 0:01:05]} 13. h4 {[%emt 0:02:33]} g4 {[%emt 0:06:35]} 14. Nh2 {[%emt 0:00:12]} h5 {[%emt 0:03:55]} 15. Bg5 {[%emt 0:01:26]} Rae8 {[%emt 0:08:36]} 16. Qc2 {[%emt 0:04:52]} Qd8 {[%emt 0:23:57]} 17. Bxg6 {[%emt 0:02:58]} fxg6 {[%emt 0:00:07]} 18. Bxe7 {[%emt 0:00:08]} Qxe7 {[%emt 0:00:02]} 19. Qxg6 {[%emt 0:00:09]} Qxh4 {[%emt 0:00:15]} 20. Rf1 {[%emt 0:04:26]} Re7 {[%emt 0:01:42]} 21. Nxh5 {[%emt 0:07:51]} Rf5 {[%emt 0:01:01]} 22. Nxg7 {[%emt 0:00:14]} Rxg7 {[%emt 0:00:03]} 23. Qxe6+ {[%emt 0:00:11]} Rff7 {[%emt 0:01:13]} 24. Rae1 {[%emt 0:10:28]} Nf8 {[%emt 0:00:20]} 25. Qc8 {[%emt 0:01:51]} Rd7 {[%emt 0:00:22]} 26. Qb8 {[%emt 0:26:52]} Rd8 {[%emt 0:01:10]} 27. g3 {[%emt 0:04:31]} Qxh2+ {[%emt 0:00:40]} 28. Kxh2 {[%emt 0:00:06]} Rxb8 {[%emt 0:00:03]} 29. Kg2 {[%emt 0:01:43]} Ne6 {[%emt 0:00:13]} 30. Rh1 {[%emt 0:00:48]} Re8 {[%emt 0:00:51]} 31. Rh6 {[%emt 0:02:22]} Kf7 {[%emt 0:00:50]} 32. Reh1 {[%emt 0:00:21]} Ke7 {[%emt 0:00:12]} 33. Rf6 {[%emt 0:00:59]} Ng5 {[%emt 0:00:40]} 34. Rhh6 {[%emt 0:00:31]} Ne4 {[%emt 0:00:17]} 35. Re6+ {[%emt 0:01:48]} Kd7 {[%emt 0:00:09]} 36. Rxe8 {[%emt 0:02:28]} Kxe8 {[%emt 0:00:01]} 37. Rh8+ {[%emt 0:00:12]} Kf7 {[%emt 0:00:26]} 38. Rh6 {[%emt 0:05:19]} Ke7 {[%emt 0:00:14]} 39. f4 {[%emt 0:00:00]} gxf3+ {[%emt 0:00:00]} 40. Kxf3 {[%emt 0:00:00]} Rxg3+ {[%emt 0:00:00]} 41. Kf4 {[%emt 0:00:00]} Rg7 {[%emt 0:00:00]} 42. a4 {[%emt 0:00:00]} Rf7+ {[%emt 0:00:00]} 43. Ke3 {[%emt 0:00:00]} Ng5 {[%emt 0:00:00]} 44. Rh8 {[%emt 0:00:00]} Rf8 {[%emt 0:00:00]} 45. Rh5 {[%emt 0:00:00]} Ne6 {[%emt 0:00:00]} 46. Rh7+ {[%emt 0:00:00]} Rf7 {[%emt 0:00:00]} 47. Rh8 {[%emt 0:00:00]} Nf8 {[%emt 0:00:00]} 48. Rh2 {[%emt 0:00:00]} Rg7 {[%emt 0:00:00]} 49. Kd3 {[%emt 0:00:00]} a5 {[%emt 0:00:00]} 50. Kc2 {[%emt 0:00:00]} Nd7 {[%emt 0:00:00]} 51. Rh6 {[%emt 0:00:00]} Nb6 {[%emt 0:00:00]} 52. b3 {[%emt 0:00:00]} Nd7 {[%emt 0:00:00]} 53. Kb2 {[%emt 0:00:00]} Nf8 {[%emt 0:00:00]} 54. Rh2 {[%emt 0:00:00]} Ne6 {[%emt 0:00:00]} 55. Rh8 {[%emt 0:00:00]} Nf8 {[%emt 0:00:00]} 56. Rh2 {[%emt 0:00:00]} Rg3 {[%emt 0:00:00]} 57. Kc2 {[%emt 0:00:00]} Rf3 {[%emt 0:00:00]} 58. Kb2 {[%emt 0:00:00]} Ke6 {[%emt 0:00:00]} 59. Rh6+ {[%emt 0:00:00]} Kf7 {[%emt 0:00:00]} 60. Rh2 {[%emt 0:00:00]} Kg7 {[%emt 0:00:00]} 61. Kc2 {[%emt 0:00:00]} Rg3 {[%emt 0:00:32]} 62. Kb2 {[%emt 0:00:00]} Ne6 {[%emt 0:00:33]} 63. Rd2 {[%emt 0:04:45]} Nf4 {[%emt 0:00:39]} 64. Rd1 {[%emt 0:00:06]} Kg6 {[%emt 0:02:30]} 65. Rf1 {[%emt 0:01:29]} Kf5 {[%emt 0:00:40]} 66. Rh1 {[%emt 0:00:09]} Rh3 {[%emt 0:01:03]} 67. Rf1 {[%emt 0:01:57]} b6 {[%emt 0:01:37]} 68. Rg1 {[%emt 0:05:28]} Rh2+ {[%emt 0:07:36]} 69. Ka3 {[%emt 0:00:34]} Rh6 {[%emt 0:00:26]} 70. Rg8 {[%emt 0:04:04]} Ke4 {[%emt 0:00:56]} 71. b4 {[%emt 0:00:53]} axb4+ {[%emt 0:00:50]} 72. Kxb4 {[%emt 0:00:05]} Nd3+ {[%emt 0:00:42]} 73. Kb3 {[%emt 0:00:14]} c5 {[%emt 0:00:12]} 74. Rg4+ {[%emt 0:00:25]} Nf4 {[%emt 0:00:50]} 75. Rg1 {[%emt 0:00:53]} Nd3 {[%emt 0:00:42]} 76. Rg4+ {[%emt 0:00:09]} Kf3 {[%emt 0:00:10]} 77. Rg8 {[%emt 0:00:11]} Ke4 {[%emt 0:01:03]} 1/2-1/2

[Event "Polugaevsky Memorial 2019"]
[Site "Samara"]
[Date "2019.07.10"]
[Round "1.7"]
[White "Petrovsky, Nikita"]
[Black "Gabrielian, Artur"]
[Result "0-1"]
[ECO "E12"]
[WhiteElo "1896"]
[BlackElo "2458"]
[Annotator "ChessBase"]
[PlyCount "59"]
[EventDate "2019.07.10"]
[EventType "swiss"]
[EventCountry "RUS"]
[SourceTitle "playchess.com"]
[Source "ChessBase"]
[SourceQuality "1"]
[TimeControl "5400+30"]

1. d4 {[%emt 0:00:00]} Nf6 {[%emt 0:00:43]} 2. c4 {[%emt 0:00:00]} e6 {[%emt 0:01:21]} 3. Nf3 {[%emt 0:00:12]} b6 {[%emt 0:03:02]} 4. Bf4 {[%emt 0:10:57]} Bb7 {[%emt 0:00:49]} 5. h3 {[%emt 0:05:05]} Bb4+ {[%emt 0:04:07]} 6. Nbd2 {[%emt 0:02:58]} c5 {[%emt 0:02:52]} 7. e3 {[%emt 0:03:04]} cxd4 {[%emt 0:10:53]} 8. exd4 {[%emt 0:00:47]} d5 {[%emt 0:02:24]} 9. Be2 {[%emt 0:10:55]} dxc4 {[%emt 0:03:08]} 10. O-O {[%emt 0:14:58]} b5 {[%emt 0:04:39]} 11. a4 {[%emt 0:05:31]} a6 {[%emt 0:00:06]} 12. axb5 {[%emt 0:00:13]} axb5 {[%emt 0:00:04]} 13. Rxa8 {[%emt 0:00:14]} Bxa8 {[%emt 0:00:03]} 14. b3 {[%emt 0:01:13]} c3 {[%emt 0:07:00]} 15. Bxb5+ {[%emt 0:00:32]} Bc6 {[%emt 0:00:14]} 16. Bxc6+ {[%emt 0:00:46]} Nxc6 {[%emt 0:00:03]} 17. Nc4 {[%emt 0:02:17]} Nd5 {[%emt 0:00:37]} 18. Bg3 {[%emt 0:08:23]} O-O {[%emt 0:03:48]} 19. Nfe5 {[%emt 0:02:05]} Nxe5 {[%emt 0:03:20]} 20. Bxe5 {[%emt 0:07:46]} Qg5 {[%emt 0:02:58]} 21. f4 {[%emt 0:09:26]} Qg6 {[%emt 0:02:57]} 22. Qe2 {[%emt 0:07:11]} Rd8 {[%emt 0:01:46]} 23. f5 {[%emt 0:06:00]} exf5 {[%emt 0:00:57]} 24. Ne3 {[%emt 0:00:48]} Nxe3 {[%emt 0:02:33]} 25. Qxe3 {[%emt 0:00:04]} Qe6 {[%emt 0:01:16]} 26. g4 {[%emt 0:00:44]} f6 {[%emt 0:02:33]} 27. gxf5 {[%emt 0:00:23]} Qd5 {[%emt 0:01:58]} 28. Bf4 {[%emt 0:00:56]} Qxd4 {[%emt 0:02:37]} 29. Kh1 {[%emt 0:00:31]} Qd5+ {[%emt 0:00:50]} 30. Kh2 {[%emt 0:01:01]} 0-1

[Event "Polugaevsky Memorial 2019"]
[Site "Samara"]
[Date "2019.07.10"]
[Round "1.8"]
[White "Mokshanov, Alexey"]
[Black "Erokhova, Violetta"]
[Result "1/2-1/2"]
[ECO "C02"]
[WhiteElo "2454"]
[BlackElo "1873"]
[Annotator "ChessBase"]
[PlyCount "81"]
[EventDate "2019.07.10"]
[EventType "swiss"]
[EventCountry "RUS"]
[SourceTitle "playchess.com"]
[Source "ChessBase"]
[SourceQuality "1"]
[TimeControl "5400+30"]

1. e4 {[%emt 0:00:00]} e6 {[%emt 0:00:00]} 2. d4 {[%emt 0:00:00]} d5 {[%emt 0:00:00]} 3. e5 {[%emt 0:00:00]} c5 {[%emt 0:00:00]} 4. c3 {[%emt 0:00:00]} Bd7 {[%emt 0:00:00]} 5. Nf3 {[%emt 0:00:00]} Nc6 {[%emt 0:00:06]} 6. Be2 {[%emt 0:00:04]} Qc7 {[%emt 0:00:06]} 7. O-O {[%emt 0:00:15]} h6 {[%emt 0:00:06]} 8. Re1 {[%emt 0:04:46]} O-O-O {[%emt 0:01:05]} 9. Be3 {[%emt 0:06:10]} f6 {[%emt 0:01:28]} 10. exf6 {[%emt 0:05:29]} gxf6 {[%emt 0:01:03]} 11. dxc5 {[%emt 0:00:26]} Nge7 {[%emt 0:07:33]} 12. b4 {[%emt 0:06:37]} Nf5 {[%emt 0:08:30]} 13. Nd4 {[%emt 0:02:13]} Nxe3 {[%emt 0:09:35]} 14. fxe3 {[%emt 0:00:02]} a6 {[%emt 0:07:30]} 15. b5 {[%emt 0:03:58]} axb5 {[%emt 0:00:51]} 16. Bxb5 {[%emt 0:02:39]} e5 {[%emt 0:05:25]} 17. Nb3 {[%emt 0:04:48]} Be6 {[%emt 0:02:30]} 18. N1d2 {[%emt 0:00:47]} Rg8 {[%emt 0:03:48]} 19. Qf3 {[%emt 0:11:15]} Be7 {[%emt 0:03:30]} 20. c4 {[%emt 0:08:27]} Nb4 {[%emt 0:09:53]} 21. cxd5 {[%emt 0:06:23]} Bxd5 {[%emt 0:04:04]} 22. e4 {[%emt 0:02:53]} Bxb3 {[%emt 0:03:04]} 23. Nxb3 {[%emt 0:00:15]} Nc2 {[%emt 0:00:56]} 24. Qf2 {[%emt 0:01:17]} Nxa1 {[%emt 0:02:08]} 25. Rxa1 {[%emt 0:00:06]} Kb8 {[%emt 0:00:36]} 26. Rc1 {[%emt 0:10:32]} Rg4 {[%emt 0:02:57]} 27. c6 {[%emt 0:07:15]} bxc6 {[%emt 0:04:55]} 28. Bxc6 {[%emt 0:04:15]} Qa7 {[%emt 0:00:30]} 29. Qxa7+ {[%emt 0:00:05]} Kxa7 {[%emt 0:00:02]} 30. Bd5 {[%emt 0:00:01]} Rg7 {[%emt 0:08:44]} 31. Na5 {[%emt 0:02:42]} Kb6 {[%emt 0:02:01]} 32. Nc6 {[%emt 0:00:46]} Rc8 {[%emt 0:02:57]} 33. Rb1+ {[%emt 0:04:23]} Kc7 {[%emt 0:00:07]} 34. a4 {[%emt 0:01:46]} Bc5+ {[%emt 0:01:22]} 35. Kf1 {[%emt 0:00:18]} Kd6 {[%emt 0:00:08]} 36. Na5 {[%emt 0:00:11]} Ra7 {[%emt 0:02:15]} 37. Nc4+ {[%emt 0:01:36]} Kc7 {[%emt 0:02:30]} 38. a5 {[%emt 0:00:19]} Rb8 {[%emt 0:00:10]} 39. Rc1 {[%emt 0:00:03]} Kd7 {[%emt 0:01:20]} 40. Nxe5+ {[%emt 0:00:00]} fxe5 {[%emt 0:00:00]} 41. Rxc5 {[%emt 0:00:00]} 1/2-1/2